bitfinex-derivatives/quotes_ETHF0:USTF0_20250912
["timestamp","ask_amount","ask_price","bid_price","bid_amount"]
[1757663027543,1.7727941,4531.9,4531.8,0.1973]
[1757663028047,1.4819941,4531.9,4531.5,3.2078]
[1757663028251,1.7727941,4531.6,4531.5,3.2078]
[1757663028640,1.7727941,4531.6,4531.5,3.4051]
[1757663029052,1.7727941,4531.6,4531.5,3.6982]
[1757663029448,1.7727941,4531.6,4531.5,3.9094]
[1757663031644,1.7727941,4531.6,4531.5,3.4051]
[1757663031852,1.7727941,4531.6,4531.5,3.6982]
[1757663032051,1.7727941,4531.6,4531.5,3.9094]
[1757663032346,0.6814,4531.6,4531.5,3.9094]
[1757663034650,1.95867727,4531.6,4531.5,3.9094]
[1757663042657,0.6814,4531.6,4531.5,3.9094]
[1757663042848,0.4826,4531.6,4531.5,4.0284]
[1757663043560,0.2908,4531.6,4531.5,4.0284]
[1757663044058,0.5004,4531.6,4531.5,4.0284]
[1757663044659,0.5004,4531.6,4531.5,3.9094]
[1757663047561,1.97907727,4531.6,4531.5,3.9094]
[1757663047758,0.411,4531.3,4531.2,0.5]
[1757663047956,0.7117,4531.3,4531.2,0.5]
[1757663048260,2.75825035,4531.3,4531.2,0.5]
[1757663048453,2.75825035,4531.3,4531.2,0.7091]
[1757663051257,1.25797308,4531.3,4531.2,0.7091]
[1757663052366,0.7117,4531.3,4531.2,0.7091]
[1757663053867,1.25737158,4531.3,4531.2,0.7091]
[1757663054365,0.7117,4531.3,4531.2,0.7091]
[1757663054565,0.7117,4531.3,4531.2,0.2101]
[1757663054766,1.25735372,4531.3,4531.2,0.2101]
[1757663057169,1.25735372,4531.3,4531.2,0.5]
[1757663058467,1.25735372,4531.3,4531.2,0.7091]
[1757663058870,1.25735372,4531.3,4531.2,0.4192]
[1757663059069,1.48035372,4531.3,4531.2,0.4192]
[1757663059767,1.48035372,4531.3,4531.2,0.2101]
[1757663060468,1.48035372,4531.3,4531.2,0.5]
[1757663061173,1.48035372,4531.3,4531.2,0.2101]
[1757663061373,1.48035372,4531.3,4531.0,3.2078]
[1757663061562,0.3007,4531.2,4531.0,3.4977]
[1757663061764,0.9347,4531.1,4531.0,3.7078]
[1757663061971,0.9347,4531.1,4531.0,3.9169]
[1757663064171,0.5103,4531.1,4531.0,3.9169]
[1757663064475,0.5237,4531.1,4531.0,4.0359]
[1757663065776,0.223,4531.1,4531.0,4.0359]
[1757663066878,0.7333,4531.1,4531.0,4.0359]
[1757663068777,0.223,4531.1,4531.0,4.0359]
[1757663068976,0.5132,4531.1,4531.0,4.0359]
[1757663077889,1.50027727,4531.3,4531.0,4.0359]
[1757663078090,0.83626885,4531.2,4531.1,0.3012]
[1757663078290,0.83626885,4531.2,4531.1,0.7161]
[1757663080090,0.223,4531.6,4531.2,0.3012]
[1757663080298,4.48507727,4532.4,4532.2,0.7161]
[1757663080299,0.4974,4532.3,4532.2,0.7161]
[1757663080491,1.26624156,4532.3,4532.2,0.7161]
[1757663081700,1.47724156,4532.3,4532.2,0.7161]
[1757663081899,1.25424156,4532.3,4532.2,0.7161]
[1757663082101,1.47724156,4532.3,4532.2,0.7161]
[1757663084493,1.25424156,4532.3,4532.2,0.7161]
[1757663084802,1.47724156,4532.3,4532.2,0.7161]
[1757663085995,1.25424156,4532.3,4532.2,0.7161]
[1757663086194,1.47724156,4532.3,4532.2,0.7161]
[1757663086395,2.53151883,4532.3,4532.2,0.7161]
[1757663086597,1.25424156,4532.3,4532.2,2.5161]
[1757663086798,1.26624156,4532.3,4532.2,2.5161]
[1757663087104,0.223,4532.3,4532.2,2.5161]
[1757663088306,1.27727727,4532.8,4532.2,2.5161]
[1757663088498,0.4974,4532.3,4532.2,2.2149]
[1757663088698,0.4974,4532.3,4532.2,2.5161]
[1757663091507,1.77467727,4532.5,4532.4,0.4149]
[1757663091713,1.99767727,4532.5,4532.4,0.7161]
[1757663092913,1.99767727,4532.5,4532.4,2.5161]
[1757663094109,2.20867727,4532.5,4532.4,2.5161]
[1757663094611,2.02269165,4532.5,4532.4,2.5161]
[1757663096307,2.14689165,4532.5,4532.4,2.5161]
[1757663098015,1.92389165,4532.5,4532.4,2.2149]
[1757663098309,0.7,4531.7,4531.6,0.7155]
[1757663098611,1.79129165,4531.7,4531.6,0.7155]
[1757663100512,1.79129165,4531.7,4531.5,3.2078]
[1757663100712,0.7,4531.6,4531.5,3.2078]
[1757663100909,0.124,4531.5,4531.4,0.2117]
[1757663101109,0.5013,4531.5,4531.4,0.7155]
[1757663101314,0.5013,4531.9,4531.8,0.7155]
[1757663102509,0.7,4531.9,4531.8,0.7155]
[1757663105212,0.824,4531.5,4531.4,0.2117]
[1757663105412,1.91529165,4531.5,4531.4,0.2117]
[1757663106206,1.91529165,4531.5,4531.4,0.5124]
[1757663106610,1.91529165,4531.5,4531.4,3.9233]
[1757663107115,0.824,4531.5,4531.4,3.9233]
[1757663107318,0.7,4531.5,4531.4,3.9233]
[1757663114820,0.5013,4531.9,4531.8,0.7155]
[1757663115324,0.3098,4531.9,4531.8,0.7155]
[1757663115520,1.40109165,4531.9,4531.8,0.7155]
[1757663115826,1.79129165,4531.9,4531.8,0.7155]
[1757663121823,0.7,4531.9,4531.8,0.7155]
[1757663122024,1.79129165,4531.9,4531.8,0.7155]
[1757663122424,1.79129165,4531.9,4531.8,0.4148]
[1757663122632,1.79129165,4531.9,4531.8,0.2117]
[1757663122929,1.79129165,4531.9,4531.8,0.5124]
[1757663123232,1.79129165,4531.9,4531.8,0.7155]
[1757663124030,0.7,4531.9,4531.8,0.7155]
[1757663124229,1.79129165,4531.9,4531.8,0.7155]
[1757663126632,1.79129165,4531.9,4531.8,0.2117]
[1757663127334,2.33724073,4531.9,4531.8,0.2117]
[1757663128036,2.33724073,4531.9,4531.5,0.3007]
[1757663128237,1.81899165,4531.6,4531.5,0.5024]
[1757663128428,1.81899165,4531.6,4531.5,0.7054]
[1757663130437,0.7277,4531.6,4531.5,0.2017]
[1757663130631,1.81899165,4531.6,4531.5,0.2017]
[1757663130837,1.81899165,4531.6,4531.5,0.5071]
[1757663131141,1.81899165,4531.6,4531.5,0.2017]
[1757663132337,1.81899165,4531.6,4531.5,0.5071]
[1757663132539,1.81899165,4531.6,4531.5,0.7101]
[1757663132934,0.5187,4531.6,4531.5,0.833]
[1757663135142,0.5187,4531.6,4531.5,1.056]
[1757663138737,0.3161,4531.9,4531.8,0.4047]
[1757663138933,0.3161,4531.9,4531.8,0.7101]
[1757663139138,0.5187,4531.9,4531.8,0.7101]
[1757663140542,0.7277,4531.9,4531.8,0.7101]
[1757663141641,0.8539,4531.5,4531.4,3.2078]
[1757663142645,0.8539,4531.5,4530.9,3.2078]
[1757663142949,1.94519165,4531.0,4530.9,3.2078]
[1757663143647,1.94519165,4531.0,4530.9,3.4095]
[1757663143948,1.94519165,4531.0,4530.9,3.9179]
[1757663144546,0.8539,4531.0,4530.9,3.9179]
[1757663144852,0.7277,4531.0,4530.9,3.9179]
[1757663146554,0.7277,4531.0,4530.9,4.1409]
[1757663148654,3.2078,4530.5,4529.3,0.10515945]
[1757663148858,1.09129165,4529.3,4529.0,0.1229]
[1757663149056,0.77008552,4529.2,4529.1,0.4047]
[1757663149256,0.54608552,4529.2,4529.1,0.4047]
[1757663149456,1.09129165,4529.2,4529.1,0.4047]
[1757663149958,1.6651676,4529.2,4529.1,0.4047]
[1757663150356,1.09129165,4529.2,4529.1,0.4047]
[1757663150751,1.09129165,4529.2,4529.1,0.7101]
[1757663150958,1.09129165,4529.2,4529.1,0.4047]
[1757663151561,1.09129165,4529.2,4529.1,0.7101]
[1757663152167,3.2078,4529.4,4529.2,0.3054]
[1757663152364,1.09129165,4529.3,4529.2,0.5071]
[1757663152964,1.09129165,4529.3,4529.2,0.7101]
[1757663154470,1.27903404,4529.3,4529.2,0.7101]
[1757663154663,1.27903404,4529.3,4529.0,0.1229]
[1757663156670,1.27903404,4529.3,4529.1,0.3054]
[1757663156871,1.27903404,4529.3,4529.0,0.1229]
[1757663158474,1.27903404,4529.3,4529.0,0.3246]
[1757663158676,1.27903404,4529.3,4528.5,0.1229]
[1757663158872,0.224,4529.5,4529.1,0.3007]
[1757663159070,3.2078,4529.2,4529.0,0.119]
[1757663159376,3.2078,4529.2,4529.0,0.3201]
[1757663159974,1.27903404,4529.1,4529.0,0.3201]
[1757663160676,1.27903404,4529.1,4529.0,0.5141]
[1757663161182,1.27903404,4529.1,4529.0,0.8148]
[1757663161775,1.27903404,4529.1,4529.0,0.6208]
[1757663163171,1.27903404,4529.1,4529.0,0.8148]
[1757663164175,1.27903404,4529.1,4529.0,0.6208]
[1757663165174,1.49973404,4529.1,4529.0,0.6208]
[1757663166580,1.49973404,4529.1,4529.0,0.8148]
[1757663174386,2.07266915,4529.1,4529.0,0.8148]
[1757663178292,2.07266915,4529.1,4529.0,0.4197]
[1757663179295,0.1932,4528.6,4528.5,0.518]
[1757663179491,5.25296915,4528.6,4528.5,0.518]
[1757663180595,5.05976915,4528.6,4528.5,0.518]
[1757663181292,5.05976915,4528.6,4528.5,0.8187]
[1757663182584,5.28056915,4528.6,4528.5,0.8187]
[1757663183385,5.47376915,4528.6,4528.5,0.8187]
[1757663186500,5.28056915,4528.6,4528.5,0.8187]
[1757663187593,4.00153511,4528.6,4528.5,4.8187]
[1757663187796,3.5183,4529.6,4529.1,0.2958]
[1757663188091,3.5183,4529.6,4529.0,0.0346]
[1757663188092,3.7111,4529.6,4529.5,0.6941]
[1757663192704,0.5033,4529.6,4529.5,0.6941]
[1757663193098,0.32,4530.0,4529.9,0.3983]
[1757663193299,0.6305,4530.0,4529.9,0.6941]
[1757663193501,0.3105,4530.0,4529.9,0.6941]
[1757663193702,3.5183,4530.1,4530.0,0.2958]
[1757663194001,5.18713404,4530.1,4529.4,0.2958]
[1757663194307,0.3898,4529.2,4529.1,0.224]
[1757663194610,0.7003,4528.7,4528.6,31.807]
[1757663196106,0.7003,4528.7,4528.6,32.1028]
[1757663197102,0.7003,4528.7,4528.6,32.3268]
[1757663197297,0.7003,4528.7,4528.6,0.9181]
[1757663202909,0.7003,4528.7,4528.6,0.3983]
[1757663203111,0.7003,4528.7,4528.3,0.2958]
[1757663203310,0.8275,4528.5,4528.4,0.4288]
[1757663203711,0.8275,4528.5,4528.4,0.7246]
[1757663203907,0.8275,4528.5,4528.4,0.9181]
[1757663205120,0.8275,4528.5,4528.4,0.6941]
[1757663205321,0.8275,4528.5,4528.4,0.9181]
[1757663205720,0.7003,4528.5,4528.4,0.9181]
[1757663206821,0.8275,4528.5,4528.4,0.9181]
[1757663207722,0.5033,4528.5,4528.4,0.9181]
[1757663207919,0.3105,4528.5,4528.4,0.9181]
[1757663208326,0.5033,4528.5,4528.4,0.9181]
[1757663208826,0.3105,4528.9,4528.8,0.3983]
[1757663209021,0.3105,4528.9,4528.8,0.6223]
[1757663209226,0.3105,4528.9,4528.8,0.9181]
[1757663209926,0.5033,4528.9,4528.8,0.6941]
[1757663210130,0.5033,4528.9,4528.8,0.9181]
[1757663210626,0.5033,4528.9,4528.8,1.1913036]
[1757663212023,3.2078,4529.0,4528.9,0.6941]
[1757663212223,3.2078,4529.0,4528.9,0.9673036]
[1757663213323,3.5183,4529.0,4528.9,0.9673036]
[1757663213525,3.7111,4529.0,4528.9,0.9673036]
[1757663213718,3.7111,4529.0,4528.9,0.2732036]
[1757663213719,4.0353,4529.0,4528.9,0.2732036]
[1757663213926,4.0353,4529.0,4528.9,0.4972036]
[1757663214123,4.0353,4529.0,4528.9,0.7020036]
[1757663214428,4.0353,4529.0,4528.9,0.70206801]
[1757663216034,4.0353,4529.0,4528.9,0.47806801]
[1757663216330,4.0353,4529.0,4528.9,0.49726801]
[1757663216632,5.12818678,4529.0,4528.9,0.49726801]
[1757663217133,5.12818678,4529.0,4528.9,0.70206801]
[1757663218527,5.12818678,4529.0,4528.9,1.19616801]
[1757663218832,3.2078,4529.0,4528.9,1.19616801]
[1757663219123,0.3158,4529.3,4528.9,1.19616801]
[1757663219336,4.81318678,4529.7,4529.6,0.6943]
[1757663219535,5.02198678,4529.7,4529.6,0.96756801]
[1757663219828,5.02198678,4529.7,4529.6,0.67226801]
[1757663220534,5.02198678,4529.7,4529.6,0.399]
[1757663220831,5.02198678,4529.7,4529.6,0.47356268]
[1757663221534,5.02198678,4529.7,4529.6,0.27336268]
[1757663222531,5.02198678,4529.7,4529.6,0.47356268]
[1757663222732,3.9291,4529.7,4529.6,0.47356268]
[1757663222933,5.02198678,4529.7,4529.6,0.47356268]
[1757663223839,5.02198678,4529.7,4529.6,0.27336268]
[1757663224430,5.59264945,4529.7,4529.6,0.27336268]
[1757663224634,0.1967,4528.4,4528.3,0.6943]
[1757663224828,0.3158,4528.6,4528.3,0.9173]
[1757663225036,0.5125,4528.6,4528.5,0.5242]
[1757663225232,0.5125,4528.6,4528.5,0.8195]
[1757663227032,0.1967,4528.6,4528.5,0.8195]
[1757663227333,0.5125,4528.9,4528.8,0.6943]
[1757663227533,0.5125,4528.9,4528.8,0.9173]
[1757663228440,0.7213,4528.9,4528.8,0.9173]
[1757663228939,0.1967,4528.9,4528.8,0.9173]
[1757663229327,0.5125,4528.9,4528.8,0.9173]
[1757663229540,0.7213,4528.9,4528.8,0.9173]
[1757663231940,0.7213,4528.9,4528.8,0.9183]
[1757663234334,0.7213,4528.9,4528.8,0.6943]
[1757663234542,0.7213,4528.9,4528.8,0.9173]
[1757663234939,0.1967,4528.9,4528.8,0.9173]
[1757663235547,0.5125,4528.9,4528.8,0.9173]
[1757663235843,0.7213,4528.9,4528.8,0.9173]
[1757663236041,1.09288678,4529.1,4528.8,0.6943]
[1757663236342,0.5125,4529.1,4529.0,0.8195]
[1757663236534,0.5125,4529.1,4529.0,1.0894092]
[1757663237145,0.7213,4529.1,4529.0,1.0894092]
[1757663237849,0.7213,4529.1,4529.0,1.1872092]
[1757663240145,0.7213,4529.1,4529.0,1.18728481]
[1757663240547,0.7213,4529.1,4529.0,0.9173]
[1757663243748,1.81418678,4529.1,4529.0,0.9173]
[1757663246152,1.81418678,4529.1,4529.0,0.6943]
[1757663246352,1.81418678,4529.1,4529.0,0.9173]
[1757663246951,1.81418678,4529.1,4529.0,0.6943]
[1757663248653,1.81418678,4529.1,4528.7,0.3114]
[1757663248853,0.7103,4528.8,4528.7,0.7178]
[1757663249041,0.7103,4528.8,4528.7,0.9408]
[1757663249853,1.80318678,4528.8,4528.7,0.2035]
[1757663250054,1.80318678,4528.8,4528.7,0.7379]
[1757663250955,1.80318678,4528.8,4528.7,0.9408]
[1757663252247,1.80318678,4528.8,4528.7,0.7379]
[1757663253756,1.80318678,4528.8,4528.7,0.5149]
[1757663255052,0.7103,4528.8,4528.7,0.5149]
[1757663255247,1.80318678,4528.8,4528.7,0.5149]
[1757663260363,0.7103,4528.8,4528.7,0.5149]
[1757663260666,1.80318678,4528.8,4528.7,0.7178]
[1757663261068,0.515,4528.8,4528.7,0.7178]
[1757663261363,4.69828678,4529.2,4529.1,0.2035]
[1757663261556,5.26840323,4529.2,4529.1,0.5149]
[1757663262064,5.58110323,4529.2,4529.1,0.2035]
[1757663265269,5.58110323,4529.2,4529.1,0.5149]
[1757663265470,3.2078,4529.7,4529.1,0.7178]
[1757663265769,0.7103,4529.6,4529.5,0.7178]
[1757663266171,0.7103,4529.6,4529.5,0.5149]
[1757663266858,0.7103,4529.6,4529.2,0.223]
[1757663267064,1.80318678,4529.3,4529.2,0.7379]
[1757663267268,0.7103,4529.3,4529.2,0.5149]
[1757663267463,1.80318678,4529.3,4529.2,0.5149]
[1757663270570,1.80318678,4529.3,4529.2,0.78463246]
[1757663271162,0.7103,4529.3,4529.2,0.78463246]
[1757663271363,1.80318678,4529.3,4529.2,0.78463246]
[1757663274662,0.7103,4529.3,4529.2,0.78463246]
[1757663274873,0.7103,4529.3,4529.2,0.98753246]
[1757663276572,0.7103,4529.3,4529.2,1.21053246]
[1757663280377,0.7103,4529.3,4529.2,0.49273246]
[1757663280576,0.7103,4529.3,4529.2,0.26973246]
[1757663281182,0.7103,4529.3,4529.2,0.76693246]
[1757663281879,0.7103,4529.3,4529.2,0.26973246]
[1757663281880,0.93109,4529.3,4529.2,0.26973246]
[1757663282177,0.93109,4529.3,4527.8,0.4972]
[1757663282178,0.7227,4527.9,4527.8,0.4972]
[1757663282788,0.7227,4527.9,4527.8,0.7031]
[1757663284977,0.4083,4527.7,4527.6,0.5256]
[1757663285178,2.00116129,4527.7,4527.6,0.7202]
[1757663285378,2.00116129,4527.7,4527.6,0.4972]
[1757663285585,2.00116129,4527.7,4527.6,0.7202]
[1757663286190,2.00116129,4527.7,4527.6,0.4972]
[1757663286685,2.00116129,4527.7,4527.6,0.7202]
[1757663287386,2.00116129,4527.7,4527.6,0.9261]
[1757663287588,0.7227,4527.7,4527.6,0.9261]
[1757663287788,0.2023,4527.7,4527.6,0.9261]
[1757663287992,4.48626129,4528.4,4527.6,0.6235]
[1757663288193,0.7227,4528.2,4528.1,0.1946]
[1757663288383,0.7227,4528.2,4528.1,0.4972]
[1757663288587,0.7227,4528.2,4527.8,0.3026]
[1757663288884,0.7227,4528.2,4527.6,0.223]
[1757663289084,0.4083,4527.8,4527.7,0.6235]
[1757663289285,0.7227,4527.8,4527.7,0.9261]
[1757663289687,0.4083,4527.4,4527.3,0.1946]
[1757663289894,2.00116129,4527.4,4527.3,0.7202]
[1757663290094,2.00116129,4527.4,4527.3,0.4972]
[1757663290386,0.5167,4526.8,4526.7,0.7031]
[1757663290587,0.7227,4526.8,4526.7,0.9261]
[1757663290788,0.7227,4526.8,4526.7,0.7031]
[1757663290984,0.7227,4526.8,4526.7,0.9261]
[1757663291497,0.7227,4527.4,4527.3,0.4972]
[1757663291888,0.7227,4527.4,4527.2,0.223]
[1757663292186,0.7227,4527.4,4527.3,0.3026]
[1757663292493,0.7227,4527.4,4527.3,0.4972]
[1757663293591,0.7227,4527.4,4527.3,0.7031]
[1757663296798,0.7227,4527.4,4527.3,0.4972]
[1757663296999,0.3144,4527.3,4527.0,0.223]
[1757663297300,0.7227,4527.2,4527.1,0.7031]
[1757663297601,0.7227,4527.2,4527.1,0.1946]
[1757663297999,0.7227,4527.2,4527.1,0.4972]
[1757663298200,0.7227,4527.2,4527.1,0.7031]
[1757663302204,3.2078,4527.9,4527.1,0.7031]
[1757663302406,3.2078,4527.9,4527.8,0.7031]
[1757663302407,3.9305,4527.9,4527.8,0.7031]
[1757663303100,3.9305,4527.9,4527.8,0.4972]
[1757663304313,3.9305,4527.9,4527.8,0.7031]
[1757663311811,3.9305,4527.9,4527.8,0.4972]
[1757663314515,3.9305,4527.9,4527.5,0.3159]
[1757663314708,3.9305,4527.9,4527.4,0.3159]
[1757663319616,3.9305,4527.9,4527.3,0.223]
[1757663320415,3.9305,4527.9,4527.4,0.3159]
[1757663320810,1.27846129,4527.5,4527.3,0.223]
[1757663321017,0.7068,4527.4,4527.3,0.223]
[1757663323214,0.4022,4527.4,4526.7,0.3159]
[1757663323418,0.1956,4526.9,4526.8,0.6237]
[1757663323622,0.5002,4526.9,4526.8,0.9396]
[1757663323813,0.7068,4526.9,4526.8,0.9396]
[1757663332320,0.7068,4526.9,4526.8,0.7166]
[1757663332525,0.7068,4526.9,4526.8,0.9396]
[1757663333629,0.3046,4527.4,4526.8,0.6237]
[1757663333932,3.2078,4527.9,4527.8,0.5185]
[1757663333933,3.9146,4527.9,4527.8,0.5185]
[1757663334127,4.4841395,4527.9,4527.8,0.5185]
[1757663335130,3.9146,4527.9,4527.8,0.5185]
[1757663337733,3.9146,4527.9,4527.8,0.2026]
[1757663337937,3.61,4527.9,4527.6,0.5252]
[1757663338129,0.409,4527.7,4527.6,0.4181]
[1757663338330,0.6988,4527.7,4527.6,0.4181]
[1757663338835,0.6988,4527.7,4527.6,0.7203]
[1757663339830,3.2078,4527.9,4527.6,0.6102]
[1757663340038,0.1193,4529.0,4527.6,0.6102]
[1757663340039,0.2898,4528.7,4528.3,0.3872]
[1757663340243,0.4918,4528.7,4528.6,0.3872]
[1757663340539,0.6988,4528.7,4528.6,0.6894]
[1757663341141,0.6988,4528.7,4528.6,0.4973]
[1757663341335,0.6988,4528.7,4528.0,0.1221]
[1757663341336,0.409,4528.7,4528.4,0.5252]
[1757663341535,1.50238088,4528.5,4528.4,0.4973]
[1757663341834,1.91908088,4528.5,4528.4,0.223]
[1757663342033,1.62928088,4528.5,4528.4,0.223]
[1757663342231,1.91908088,4528.5,4528.4,0.223]
[1757663342432,0.6988,4528.5,4528.4,0.6102]
[1757663342736,1.79218088,4528.5,4528.4,0.9124]
[1757663344637,1.91908088,4528.5,4528.4,0.9124]
[1757663347042,0.6988,4528.5,4528.4,0.9124]
[1757663348428,0.2898,4528.8,4528.7,0.6894]
[1757663348629,0.4918,4528.8,4528.7,0.6894]
[1757663348838,0.6988,4528.8,4528.7,0.6894]
[1757663350834,0.5359,4528.5,4528.4,0.4973]
[1757663351028,1.91908088,4528.5,4528.4,0.4973]
[1757663355036,0.8257,4528.5,4528.3,0.223]
[1757663355243,0.8257,4528.5,4528.4,0.1951]
[1757663355443,0.8257,4528.5,4528.4,0.4973]
[1757663358144,0.8257,4528.5,4528.3,0.223]
[1757663358345,0.6988,4528.4,4528.3,0.4973]
[1757663358941,0.6988,4528.4,4528.3,0.6894]
[1757663367260,0.4918,4528.7,4528.6,0.6894]
[1757663367650,0.6988,4528.7,4528.6,0.6894]
[1757663368251,1.79218088,4528.7,4528.6,0.6894]
[1757663368759,0.4028,4527.8,4527.7,0.5087]
[1757663369058,0.4028,4527.8,4527.7,0.7017]
[1757663369059,0.7092,4527.8,4527.7,0.7017]
[1757663371259,0.7092,4527.8,4527.7,0.9247]
[1757663371955,0.3064,4527.7,4527.3,0.298]
[1757663372153,0.1227,4528.0,4527.4,0.223]
[1757663372353,0.4028,4527.7,4527.6,0.4037]
[1757663372553,0.7092,4527.7,4527.6,0.4037]
[1757663372957,0.7092,4527.7,4527.6,0.7017]
[1757663375463,0.7092,4527.7,4527.6,0.9247]
[1757663379968,0.7092,4527.7,4527.6,0.7317]
[1757663380467,0.7092,4527.7,4527.6,0.7017]
[1757663380666,0.7092,4527.7,4527.6,0.9247]
[1757663386066,0.3064,4527.9,4527.6,0.9247]
[1757663386364,1.09338088,4528.1,4527.6,0.9247]
[1757663386365,0.2092,4527.8,4527.7,0.298]
[1757663386570,1.80258088,4528.3,4528.2,0.2107]
[1757663386872,1.80258088,4528.3,4528.2,0.5087]
[1757663387170,1.80258088,4528.3,4528.2,0.2107]
[1757663387567,1.80258088,4528.3,4527.7,0.298]
[1757663389970,0.7092,4527.8,4527.7,0.7017]
[1757663392369,0.3064,4528.1,4527.7,0.4037]
[1757663392571,0.2092,4528.1,4528.0,0.5239]
[1757663392778,0.7092,4528.1,4528.0,0.7017]
[1757663394874,3.2078,4528.4,4528.0,0.5239]
[1757663395082,3.2078,4528.4,4528.3,0.7017]
[1757663395276,3.417,4528.4,4528.3,0.9247]
[1757663395578,0.2092,4528.4,4528.3,0.9247]
[1757663395774,4.42048088,4529.0,4528.5,0.1202]
[1757663395775,3.3271,4529.0,4528.5,0.1202]
[1757663395979,0.1217,4529.5,4528.5,0.1202]
[1757663395980,0.2092,4529.5,4529.4,0.7017]
[1757663396380,0.5156,4529.5,4529.4,0.7017]
[1757663397280,0.5156,4529.6,4529.5,0.8219]
[1757663397483,0.7092,4530.1,4530.0,0.4037]
[1757663397685,0.7092,4530.1,4530.0,0.7017]
[1757663400590,0.8435,4529.5,4529.4,0.1977]
[1757663400888,2.1215664,4529.5,4529.4,0.1977]
[1757663401082,2.1215664,4529.5,4529.4,0.4927]
[1757663401486,0.5193,4529.9,4529.8,0.3941]
[1757663401789,0.7209,4529.9,4529.8,0.6891]
[1757663402290,1.9989664,4529.9,4529.8,0.6891]
[1757663402787,1.9989664,4529.9,4529.5,0.1157]
[1757663402788,1.9989664,4529.9,4529.6,0.223]
[1757663402987,3.9287,4529.7,4529.6,0.223]
[1757663404488,3.9287,4529.7,4529.2,0.466]
[1757663404680,0.7209,4529.3,4529.2,0.4927]
[1757663404881,0.7209,4529.3,4529.2,0.4207]
[1757663405188,0.7209,4529.3,4529.2,0.223]
[1757663405794,0.7209,4529.3,4529.2,0.7157]
[1757663408900,0.7209,4529.3,4529.2,0.4927]
[1757663409084,0.7209,4529.3,4529.2,0.1977]
[1757663409488,0.7209,4529.3,4529.2,0.4927]
[1757663410794,0.209,4530.3,4530.2,0.3941]
[1757663410994,0.3103,4531.5,4531.4,0.3941]
[1757663411188,3.2078,4531.7,4531.5,0.4107]
[1757663411393,3.2078,4531.7,4531.6,0.6891]
[1757663411794,3.4168,4531.7,4531.6,0.6891]
[1757663412491,3.7271,4531.7,4531.6,0.6891]
[1757663413097,3.9287,4531.7,4531.6,0.6891]
[1757663416497,0.7209,4531.7,4531.6,0.6891]
[1757663419804,0.209,4531.6,4531.5,0.6181]
[1757663420002,0.7209,4531.6,4531.5,0.9131]
[1757663420798,0.7209,4531.6,4531.5,0.9121]
[1757663423395,0.209,4531.0,4530.9,0.6891]
[1757663423596,0.7209,4531.0,4530.9,0.9121]
[1757663427304,0.8435,4531.0,4530.9,0.9121]
[1757663427508,0.7209,4531.0,4530.9,0.9121]
[1757663428210,0.5206,4531.5,4531.4,0.2103]
[1757663428411,0.398,4531.5,4531.4,0.7322]
[1757663428906,0.7039,4531.5,4531.4,0.7322]
[1757663434007,3.9117,4532.3,4532.2,0.522]
[1757663434810,3.9117,4532.3,4531.8,0.3117]
[1757663435214,3.9117,4532.3,4531.7,0.223]
[1757663435606,3.9117,4532.3,4531.8,0.3117]
[1757663436815,3.9117,4532.3,4531.5,0.1259]
[1757663437014,3.6058,4532.3,4531.6,0.223]
[1757663437309,0.1985,4531.7,4531.6,0.9552]
[1757663438214,0.3059,4531.9,4531.6,0.4205]
[1757663438408,0.1985,4531.8,4531.7,0.3117]
[1757663438608,0.5044,4531.8,4531.7,0.9552]
[1757663438813,0.5044,4531.8,4531.7,0.7322]
[1757663439010,0.5044,4531.8,4531.7,0.9552]
[1757663439213,0.1985,4531.8,4531.7,0.9552]
[1757663439510,0.7039,4532.2,4532.1,0.522]
[1757663443604,0.7039,4532.2,4532.1,0.7322]
[1757663445016,0.7039,4532.2,4532.1,0.9552]
[1757663446921,0.1985,4532.2,4532.1,0.9552]
[1757663447321,0.5044,4532.2,4532.1,0.9552]
[1757663448219,0.7039,4532.2,4532.1,0.9552]
[1757663452816,0.7039,4532.2,4532.1,0.7322]
[1757663453017,0.7039,4532.2,4532.1,0.9552]
[1757663453417,0.7039,4532.2,4532.1,0.7322]
[1757663453724,0.7039,4532.2,4532.1,0.9552]
[1757663459126,0.7039,4532.2,4531.7,0.3051]
[1757663459332,0.4015,4531.8,4531.7,0.4172]
[1757663459529,0.7061,4531.8,4531.7,0.7223]
[1757663462028,0.7061,4531.8,4531.7,0.4993]
[1757663462419,1.79762457,4531.8,4531.7,0.4993]
[1757663463323,1.79762457,4531.8,4531.7,0.7066]
[1757663463524,0.124,4532.5,4531.8,0.3051]
[1757663463525,0.3046,4532.5,4531.8,0.3051]
[1757663463725,3.5124,4532.8,4532.7,0.7066]
[1757663463934,3.5124,4532.8,4532.7,1.79812457]
[1757663464232,3.7035,4532.8,4532.7,1.79812457]
[1757663464430,3.2078,4532.8,4532.7,1.79812457]
[1757663464637,0.3046,4533.2,4533.1,0.7066]
[1757663464638,0.4957,4533.2,4533.1,0.7066]
[1757663465130,0.7061,4533.2,4533.1,0.7066]
[1757663465930,0.7061,4533.2,4533.1,0.4993]
[1757663467328,0.1211,4533.0,4532.5,0.1202]
[1757663467529,0.4957,4532.6,4532.5,0.8268]
[1757663467729,0.7061,4532.6,4532.5,0.7066]
[1757663468228,0.7061,4532.6,4532.5,0.9296]
[1757663468431,0.7061,4532.6,4532.5,1.0498]
[1757663468631,0.1911,4532.6,4532.5,1.0498]
[1757663469626,0.7061,4532.6,4532.5,1.0498]
[1757663469829,0.7061,4532.6,4532.5,0.7066]
[1757663470029,0.7061,4532.3,4532.2,0.4993]
[1757663470233,1.79762457,4532.3,4532.2,0.7223]